Workbook

Sheet 收入支出决算总表
A1: 附件2
A2: 收入支出决算总表
D3: 公开01表
A4: 公开部门：重庆市江津区统计局 | D4: 单位：万元
A5: 收入 | C5: 支出
A6: 项目 | B6: 决算数 | C6: 项目 | D6: 决算数
A7: 一、财政拨款收入 | B7: 867.42 | C7: 一、一般公共服务支出 | D7: 742.30
A8: 二、上级补助收入 | C8: 二、外交支出
A9: 三、事业收入 | C9: 三、国防支出
A10: 四、经营收入 | C10: 四、公共安全支出
A11: 五、附属单位上缴收入 | C11: 五、教育支出 | D11: 3.13
A12: 六、其他收入 | C12: 六、科学技术支出
C13: 七、社会保障和就业支出 | D13: 72.67
C14: 八、卫生健康支出 | D14: 31.66
C15: 九、住房保障支出 | D15: 25.04
A16: 本年收入合计 | B16: 867.42 | C16: 本年支出合计 | D16: 874.80
A17: 用事业基金弥补收支差额 | C17: 结余分配
A18: 年初结转和结余 | B18: 11.24 | C18: 年末结转和结余 | D18: 3.86
A19: 合计 | B19: 878.66 | C19: 合计 | D19: 878.66
A20: 备注：本表反映部门本年度的总收支和年末结转结余等情况。

Sheet 收入决算表
A1: 收入决算表
J2: 公开02表
A3: 公开部门：重庆市江津区统计局 | J3: 单位：万元
A4: 项目 | C4: 本年收入合计 | D4: 财政拨款收入 | E4: 上级补助收入 | F4: 事业收入 | H4: 经营收入 | I4: 附属单位上缴收入 | J4: 其他收入
A5: 功能分类科目编码 | B5: 项目(按“项”级功能分类科目) | J5: 小计
F6: 小计 | G6: 其中：教育收费
A8: 合计 | C8: 867.42 | D8: 867.42
A9: 201 | B9: 一般公共服务支出 | C9: 734.92 | D9: 734.92
A10: 20105 | B10: 统计信息事务 | C10: 734.92 | D10: 734.92
A11: 2010501 | B11: 行政运行 | C11: 487.05 | D11: 487.05
A12: 2010502 | B12: 一般行政管理事务 | C12: 36.86 | D12: 36.86
A13: 2010505 | B13: 专项统计业务 | C13: 34.64 | D13: 34.64
A14: 2010507 | B14: 专项普查活动 | C14: 154.57 | D14: 154.57
A15: 2010508 | B15: 统计抽样调查 | C15: 21.80 | D15: 21.80
A16: 205 | B16: 教育支出 | C16: 3.13 | D16: 3.13
A17: 20508 | B17: 进修及培训 | C17: 3.13 | D17: 3.13
A18: 2050803 | B18: 培训支出 | C18: 3.13 | D18: 3.13
A19: 208 | B19: 社会保障和就业支出 | C19: 72.67 | D19: 72.67
A20: 20805 | B20: 行政事业单位离退休 | C20: 72.67 | D20: 72.67
A21: 2080505 | B21: 机关事业单位基本养老保险缴费支出 | C21: 41.73 | D21: 41.73
A22: 2080506 | B22: 机关事业单位职业年金额缴费支出 | C22: 16.69 | D22: 16.69
A23: 2080599 | B23: 其他行政事业单位离退休支出 | C23: 14.25 | D23: 14.25
A24: 210 | B24: 医疗卫生与计划生育支出 | C24: 31.66 | D24: 31.66
A25: 21011 | B25: 行政事业单位医疗 | C25: 31.66 | D25: 31.66
A26: 2101101 | B26: 行政单位医疗 | C26: 21.66 | D26: 21.66
A27: 2101103 | B27: 公务员医疗补助 | C27: 10.00 | D27: 10.00
A28: 221 | B28: 住房保障支出 | C28: 25.04 | D28: 25.04
A29: 22102 | B29: 住房改革支出 | C29: 25.04 | D29: 25.04
A30: 2210201 | B30: 住房公积金 | C30: 25.04 | D30: 25.04
A31: 备注：本表反映部门本年度取得的各项收入情况。

Sheet 支出决算表
A1: 支出决算表
H2: 公开03表
A3: 公开部门：重庆市江津区统计局 | H3: 单位：万元
A4: 项目 | C4: 本年支出合计 | D4: 基本支出 | E4: 项目支出 | F4: 上缴上级支出 | G4: 经营支出 | H4: 对附属单位补助支出
A5: 功能分类科目编码 | B5: 项目(按“项”级功能分类科目)
A8: 合计 | C8: 874.80 | D8: =D9+D16+D19+D24+D28 -> 619.55 | E8: 255.25
A9: 201 | B9: 一般公共服务支出 | C9: =D9+E9 -> 742.30 | D9: 487.05 | E9: 255.25
A10: 20105 | B10: 统计信息事务 | C10: =D10+E10 -> 742.30 | D10: 487.05 | E10: 255.25
A11: 2010501 | B11: 行政运行 | C11: =D11+E11 -> 487.05 | D11: 487.05
A12: 2010502 | B12: 一般行政管理事务 | C12: =D12+E12 -> 36.86 | E12: 36.86
A13: 2010505 | B13: 专项统计业务 | C13: =D13+E13 -> 34.64 | E13: 34.64
A14: 2010507 | B14: 专项普查活动 | C14: =D14+E14 -> 154.57 | E14: 154.57
A15: 2010508 | B15: 统计抽样调查 | C15: =D15+E15 -> 29.18 | E15: 29.18
A16: 205 | B16: 教育支出 | C16: =D16+E16 -> 3.13 | D16: 3.13
A17: 20508 | B17: 进修及培训 | C17: =D17+E17 -> 3.13 | D17: 3.13
A18: 2050803 | B18: 培训支出 | C18: =D18+E18 -> 3.13 | D18: 3.13
A19: 208 | B19: 社会保障和就业支出 | C19: =D19+E19 -> 72.67 | D19: 72.67
A20: 20805 | B20: 行政事业单位离退休 | C20: =D20+E20 -> 72.67 | D20: 72.67
A21: 2080505 | B21: 机关事业单位基本养老保险缴费支出 | C21: =D21+E21 -> 41.73 | D21: 41.73
A22: 2080506 | B22: 机关事业单位职业年金额缴费支出 | C22: =D22+E22 -> 16.69 | D22: 16.69
A23: 2080599 | B23: 其他行政事业单位离退休支出 | C23: =D23+E23 -> 14.25 | D23: 14.25
A24: 210 | B24: 医疗卫生与计划生育支出 | C24: =D24+E24 -> 31.66 | D24: 31.66
A25: 21011 | B25: 行政事业单位医疗 | C25: =D25+E25 -> 31.66 | D25: 31.66
A26: 2101101 | B26: 行政单位医疗 | C26: =D26+E26 -> 21.66 | D26: 21.66
A27: 2101103 | B27: 公务员医疗补助 | C27: =D27+E27 -> 10.00 | D27: 10.00
A28: 221 | B28: 住房保障支出 | C28: =D28+E28 -> 25.04 | D28: 25.04
A29: 22102 | B29: 住房改革支出 | C29: =D29+E29 -> 25.04 | D29: 25.04
A30: 2210201 | B30: 住房公积金 | C30: =D30+E30 -> 25.04 | D30: 25.04
A31: 备注：本表反映部门本年度各项支出情况。

Sheet 财政拨款收入支出决算总表
A1: 财政拨款收入支出决算总表
F2: 公开04表
A3: 公开部门：重庆市江津区统计局 | F3: 单位：万元
A4: 收入 | C4: 支出
A5: 项 目 | B5: 决算数 | C5: 功能分类科目 | D5: 决算数
D6: 小计 | E6: 一般公共预算财政拨款 | F6: 政府性基金预算财政拨款
A7: 一、一般公共预算财政拨款 | B7: 867.42 | C7: 一、一般公共服务支出 | D7: 742.30 | E7: 742.30
A8: 二、政府性基金预算财政拨款 | C8: 二、外交支出
C9: 三、国防支出
C10: 四、公共安全支出
C11: 五、教育支出 | D11: 3.13 | E11: 3.13
C12: 六、科学技术支出
C13: 七、社会保障和就业支出 | D13: 72.67 | E13: 72.67
C14: 八、卫生健康支出 | D14: 31.66 | E14: 31.66
C15: 九、住房保障支出 | D15: 25.04 | E15: 25.04
A16: 本年收入合计 | B16: 867.42 | C16: 本年支出合计 | D16: 874.80 | E16: 874.80
A17: 年初财政拨款结转和结余 | B17: 11.24 | C17: 年末财政拨款结转和结余 | D17: 3.86 | E17: 3.86
A18: 一、一般公共预算财政拨款
A19: 二、政府性基金预算财政拨款
A20: 总计 | B20: 878.66 | C20: 总计 | D20: 878.66 | E20: 878.66
A21: 备注：本表反映部门本年度一般公共预算财政拨款和政府性基金财政拨款的总收支和年末结转结余情况。

Sheet 一般公共预算财政拨款收入支出决算表
A1: 一般公共预算财政拨款收入支出决算表
H2: 公开05表
A3: 公开部门：重庆市江津区统计局 | H3: 单位：万元
A4: 功能分类科目编码 | B4: 项目(按“项”级功能分类科目) | C4: 年初结转和结余 | D4: 本年收入 | E4: 决算数 | H4: 年末结转和结余
E5: 合计 | F5: 基本支出 | G5: 项目支出
A6: 合 计 | C6: 11.24 | D6: =E6 -> 867.42 | E6: =F6+G6 -> 867.42 | F6: =F7+F14+F17+F22+F26 -> 619.55 | G6: 247.87 | H6: 3.86
A7: 201 | B7: 一般公共服务支出 | D7: =E7 -> 734.92 | E7: =F7+G7 -> 734.92 | F7: 487.05 | G7: 247.87
A8: 20105 | B8: 统计信息事务 | D8: =E8 -> 734.92 | E8: =F8+G8 -> 734.92 | F8: 487.05 | G8: 247.87
A9: 2010501 | B9: 行政运行 | D9: =E9 -> 487.05 | E9: =F9+G9 -> 487.05 | F9: 487.05
A10: 2010502 | B10: 一般行政管理事务 | D10: =E10 -> 36.86 | E10: =F10+G10 -> 36.86 | G10: 36.86
A11: 2010505 | B11: 专项统计业务 | D11: =E11 -> 34.64 | E11: =F11+G11 -> 34.64 | G11: 34.64
A12: 2010507 | B12: 专项普查活动 | D12: =E12 -> 154.57 | E12: =F12+G12 -> 154.57 | G12: 154.57
A13: 2010508 | B13: 统计抽样调查 | C13: 11.24 | D13: =E13 -> 21.80 | E13: =F13+G13 -> 21.80 | G13: 21.8 | H13: 3.86
A14: 205 | B14: 教育支出 | D14: =E14 -> 3.13 | E14: =F14+G14 -> 3.13 | F14: 3.13
A15: 20508 | B15: 进修及培训 | D15: =E15 -> 3.13 | E15: =F15+G15 -> 3.13 | F15: 3.13
A16: 2050803 | B16: 培训支出 | D16: =E16 -> 3.13 | E16: =F16+G16 -> 3.13 | F16: 3.13
A17: 208 | B17: 社会保障和就业支出 | D17: =E17 -> 72.67 | E17: =F17+G17 -> 72.67 | F17: 72.67
A18: 20805 | B18: 行政事业单位离退休 | D18: =E18 -> 72.67 | E18: =F18+G18 -> 72.67 | F18: 72.67
A19: 2080505 | B19: 机关事业单位基本养老保险缴费支出 | D19: =E19 -> 41.73 | E19: =F19+G19 -> 41.73 | F19: 41.73
A20: 2080506 | B20: 机关事业单位职业年金额缴费支出 | D20: =E20 -> 16.69 | E20: =F20+G20 -> 16.69 | F20: 16.69
A21: 2080599 | B21: 其他行政事业单位离退休支出 | D21: =E21 -> 14.25 | E21: =F21+G21 -> 14.25 | F21: 14.25
A22: 210 | B22: 医疗卫生与计划生育支出 | D22: =E22 -> 31.66 | E22: =F22+G22 -> 31.66 | F22: 31.66
A23: 21011 | B23: 行政事业单位医疗 | D23: =E23 -> 31.66 | E23: =F23+G23 -> 31.66 | F23: 31.66
A24: 2101101 | B24: 行政单位医疗 | D24: =E24 -> 21.66 | E24: =F24+G24 -> 21.66 | F24: 21.66
A25: 2101103 | B25: 公务员医疗补助 | D25: =E25 -> 10.00 | E25: =F25+G25 -> 10.00 | F25: 10.00
A26: 221 | B26: 住房保障支出 | D26: =E26 -> 25.04 | E26: =F26+G26 -> 25.04 | F26: 25.04
A27: 22102 | B27: 住房改革支出 | D27: =E27 -> 25.04 | E27: =F27+G27 -> 25.04 | F27: 25.04
A28: 2210201 | B28: 住房公积金 | D28: =E28 -> 25.04 | E28: =F28+G28 -> 25.04 | F28: 25.04
A29: 备注：本表反映部门本年度一般公共预算财政拨款收支余情况。

Sheet 一般公共预算财政拨款基本支出决算表
A1: 一般公共预算财政拨款基本支出决算表
E2: 公开06表
A3: 公开部门：重庆市江津区统计局 | E3: 单位：万元
A4: 经济分类科目（按“款”级经济分类科目 | C4: 2019年一般公共预算基本支出
A5: 科目编码 | B5: 科目名称 | C5: 合计 | D5: 人员经费 | E5: 公用经费
A6: 合计 | C6: =D6+E6 -> 619.55 | D6: =D7+D20 -> 502.48 | E6: 117.07
A7: 301 | B7: 工资福利支出 | C7: =D7+E7 -> 481.05 | D7: 481.05
A8: 30101 | B8: 基本工资 | C8: =D8+E8 -> 116.13 | D8: 116.13
A9: 30102 | B9: 津贴补贴 | C9: =D9+E9 -> 89.17 | D9: 89.17
A10: 30103 | B10: 奖金 | C10: =D10+E10 -> 80.71 | D10: 80.71
A11: 30106 | B11: 伙食补助费 | C11: =D11+E11 -> 0.14 | D11: 0.14
A12: 30108 | B12: 机关事业单位基本养老保险费 | C12: =D12+E12 -> 41.73 | D12: 41.73
A13: 30109 | B13: 职业年金缴费 | C13: =D13+E13 -> 16.69 | D13: 16.69
A14: 30110 | B14: 职工基本医疗保险缴费 | C14: =D14+E14 -> 21.66 | D14: 21.66
A15: 30111 | B15: 公务员医疗补助缴费 | C15: =D15+E15 -> 10.00 | D15: 10.00
A16: 30112 | B16: 其他社会保障缴费 | C16: =D16+E16 -> 5.23 | D16: 5.23
A17: 30113 | B17: 住房公积金 | C17: =D17+E17 -> 29.42 | D17: 29.42
A18: 30114 | B18: 医疗费 | C18: =D18+E18 -> 5.93 | D18: 5.93
A19: 30199 | B19: 其他工资福利支出 | C19: =D19+E19 -> 64.24 | D19: 64.24
A20: 303 | B20: 对个人和家庭的补助 | C20: =D20+E20 -> 21.43 | D20: 21.43
A21: 30305 | B21: 生活补助 | C21: =D21+E21 -> 3.84 | D21: 3.84
A22: 30306 | B22: 救济费 | C22: =D22+E22 -> 1.54 | D22: 1.54
A23: 30307 | B23: 医疗补助费 | C23: =D23+E23 -> 1.80 | D23: 1.80
A24: 30399 | B24: 其他对个人和家族的补助 | C24: =D24+E24 -> 14.25 | D24: 14.25
A25: 302 | B25: 商品和服务支出 | C25: =D25+E25 -> 117.07 | E25: 117.07
A26: 30201 | B26: 办公费 | C26: =D26+E26 -> 3.70 | E26: 3.70
A27: 30202 | B27: 印刷费 | C27: =D27+E27 -> 0.15 | E27: 0.15
A28: 30207 | B28: 邮电费 | C28: =D28+E28 -> 2.82 | E28: 2.82
A29: 30209 | B29: 物业管理费 | C29: =D29+E29 -> 0.94 | E29: 0.94
A30: 30211 | B30: 差旅费 | C30: =D30+E30 -> 28.26 | E30: 28.26
A31: 30216 | B31: 培训费 | C31: =D31+E31 -> 3.13 | E31: 3.13
A32: 30217 | B32: 公务接待费 | C32: =D32+E32 -> 0.39 | E32: 0.39
A33: 30228 | B33: 工会经费 | C33: =D33+E33 -> 13.56 | E33: 13.56
A34: 30229 | B34: 福利费 | C34: =D34+E34 -> 4.40 | E34: 4.40
A35: 30231 | B35: 公务用车运行维护费 | C35: =D35+E35 -> 4.37 | E35: 4.37
A36: 30239 | B36: 其他交通费 | C36: =D36+E36 -> 25.34 | E36: 25.34
A37: 30299 | B37: 其他商品和服务支出 | C37: =D37+E37 -> 30.01 | E37: 30.01
A38: 备注：本表反映部门本年度一般公共预算财政拨款基本支出明细情况。

Sheet 政府性基金预算财政拨款收入支出决算表
A1: 政府性基金预算财政拨款收入支出决算表
H2: 公开07表
A3: 公开部门：重庆市江津区统计局 | H3: 单位：万元
A4: 功能分类科目编码 | B4: 项目(按“项”级功能分类科目) | C4: 年初结转和结余 | D4: 本年收入 | E4: 本年支出 | H4: 年末结转和结余
E5: 合计 | F5: 基本支出 | G5: 项目支出
A15: 备注：本单位无政府性基金收入，也没有使用政府性基金安排的支出，故本表无数据。

Sheet 机构运行信息表
A1: 机构运行信息表
E2: 公开08表
A3: 公开部门：重庆市江津区统计局 | E3: 单位：万元
A4: 项 目 | B4: 预算数 | C4: 决算数 | D4: 项 目 | E4: 决算数
A5: 一、“三公”经费支出 | B5: — | C5: — | D5: 四、机关运行经费 | E5: 117.07
A6: （一）支出合计 | B6: 28.00 | C6: 5.58 | D6: （一）行政单位 | E6: 117.07
A7: 1．因公出国（境）费 | D7: （二）参照公务员法管理事业单位
A8: 2．公务用车购置及运行维护费 | B8: 8.00 | C8: 4.62 | D8: 五、国有资产占用情况
A9: （1）公务用车购置费 | D9: （一）车辆数合计（辆） | E9: —
A10: （2）公务用车运行维护费 | B10: 8.00 | C10: 4.62 | D10: 1.副部（省）级及以上领导用车
A11: 3．公务接待费 | B11: 20.00 | C11: 0.96 | D11: 2.主要领导干部用车
A12: （1）国内接待费 | B12: 20.00 | C12: 0.96 | D12: 3.机要通信用车
A13: 其中：外事接待费 | D13: 4.应急保障用车 | E13: 1
A14: （2）国（境）外接待费 | D14: 5.执法执勤用车
A15: （二）相关统计数 | B15: — | D15: 6.特种专业技术用车
A16: 1．因公出国（境）团组数（个） | B16: — | D16: 7.离退休干部用车
A17: 2．因公出国（境）人次数（人） | B17: — | D17: 8.其他用车
A18: 3．公务用车购置数（辆） | B18: — | D18: （二）单价50万元（含）以上通用设备（台，套）
A19: 4．公务用车保有量（辆） | B19: — | C19: 1 | D19: （三）单价100万（含）元以上专用设备（台，套）
A20: 5．国内公务接待批次（个） | B20: — | C20: 5 | D20: 六、政府采购支出信息
A21: 其中：外事接待批次（个） | B21: — | D21: （一）政府采购支出合计
A22: 6．国内公务接待人次（人） | B22: — | C22: 100 | D22: 1．政府采购货物支出
A23: 其中：外事接待人次（人） | B23: — | D23: 2．政府采购工程支出
A24: 7．国（境）外公务接待批次（个） | B24: — | D24: 3．政府采购服务支出
A25: 8．国（境）外公务接待人次（人） | B25: — | D25: （二）政府采购授予中小企业合同金额
A26: 二、会议费 | B26: 14.00 | C26: 0.6 | D26: 其中：授予小微企业合同金额
A27: 三、培训费 | B27: 40.00 | C27: 13.8
A28: 备注：预算数年初部门预算批复数，决算数包括当年财政拨款预算和以前年度结转结余资金安排的实际支出。
